Cogmind - Beta 16.1 @@@ ROGUE MODE // 2026.04.18 @ 19:10:21 Player: mephiles96 Result: Self-destructed Performance ------------- Evolutions (3) 1500 Regions Visited (6) 1200 Robots Destroyed (92) 460 Value Destroyed (2237) 2237 Prototype IDs (24) 480 Alien Tech Used (0) 0 Bonus (338) 338 TOTAL SCORE: 6215 Bonus ------- High Alert Combat Kills 38 Aligned with FarCom 300 Cogmind --------- Core Integrity 572/700 Matter 231/300 Energy 100/100 System Corruption 6% Temperature Cool (0) Movement Flying (106) Ox1 Location -7/Factory Parts ------- > --- POWER (1) -------- (None) > --- PROPULSION (4) --- Flight Unit Improved Cesium-ion Thruster > --- UTILITY (6) ------ Structural Scanner Terrain Scanner Transport Network Coupler Cloak of Protection > --- WEAPON (2) ------- Scythe > --- INVENTORY (5) ---- Light Nuclear Core VTOL Module Improved Light Armor Plating Grenade Launcher Peak State ------------ > --- POWER ------------ Light Nuclear Core > --- PROPULSION ------- Flight Unit Flight Unit VTOL Module Improved Cesium-ion Thruster > --- UTILITY ---------- Structural Scanner Terrain Scanner Transport Network Coupler Cloak of Protection Improved Light Armor Plating System Shield > --- WEAPON ----------- Grenade Launcher Scythe > --- INVENTORY -------- Light Nuclear Core Flight Unit Flight Unit Improved Light Armor Plating Light Assault Rifle [Rating: 33] Favorites ----------- Power Ion Engine Engine Ion Engine Power Core Light Nuclear Core Propulsion Light Treads Treads Light Treads Wheel Compact Wheel Flight Unit Flight Unit Utility Huge Storage Unit Device Seismic Detector Storage Huge Storage Unit Processor Transport Network Coupler Hackware Hacking Suite Protection Light Armor Plating Weapon Autogun Ballistic Gun Autogun Launcher Grenade Launcher Slashing Weapon Scythe Build | -11 -10 -10 -10 -9 -8 -7 ------- Run | Yrd Mat Min Exi Min Mat Fac Slots Evolved 6 | . . . . . 4 2 Power . | . . . . . . . Propulsion 2 | . . . . . 1 1 Utility 4 | . . . . . 3 1 Weapon . | . . . . . . . Parts Attached 55 | 7 6 2 . 2 28 10 Power 5 | 1 . 1 . . 2 1 Engine 4 | 1 . 1 . . 2 . Core 1 | . . . . . . 1 Reactor . | . . . . . . . Propulsion 25 | 2 3 1 . . 12 7 Treads 15 | 2 1 . . . 12 . Leg . | . . . . . . . Wheel 3 | . 2 1 . . . . Hover . | . . . . . . . Flight 7 | . . . . . . 7 Utility 15 | 2 1 . . 1 9 2 Device 5 | 1 . . . . 3 1 Storage 2 | 1 1 . . . . . Processor 1 | . . . . . 1 . Hackware 2 | . . . . . 1 1 Protection 5 | . . . . 1 4 . Artifact . | . . . . . . . Weapon 10 | 2 2 . . 1 5 . Energy Gun . | . . . . . . . Energy Cannon . | . . . . . . . Ballistic Gun 7 | 2 2 . . . 3 . Ballistic Cannon . | . . . . . . . Launcher 2 | . . . . 1 1 . Special Weapon . | . . . . . . . Impact Weapon . | . . . . . . . Slashing Weapon 1 | . . . . . 1 . Piercing Weapon . | . . . . . . . Special Melee Weapon . | . . . . . . . Unidentified Prototypes . | . . . . . . . Parts Lost 22 | . 1 2 . . 11 8 Power 4 | . . 1 . . 2 1 Propulsion 9 | . 1 1 . . 3 4 Utility 6 | . . . . . 4 2 Weapon 3 | . . . . . 2 1 Highest Loss Streak 6 | . 1 1 . . 6 5 To Critical Strikes . | . . . . . . . Average Backups 18 | 3 14 18 19 20 23 6 Power 2 | . 2 3 3 3 3 1 Propulsion 5 | 1 3 4 5 5 8 2 Utility 4 | . 3 5 5 5 5 1 Weapon 5 | . 4 6 6 6 5 1 Tool/Special . | . . . . . . . Unused Backups 13 | . . . . . 2 11 Power 2 | . . . . . . 2 Propulsion 1 | . . . . . . 1 Utility 7 | . . . . . 2 5 Weapon 2 | . . . . . . 2 Tool/Special 1 | . . . . . . 1 Average Slot Usage (%) 95 | . 99 98 100 100 91 91 Engine 10 | . 14 13 14 14 7 . Treads 20 | . 23 14 14 1 26 1 Wheel 6 | . 4 13 14 26 . . Device 13 | . 14 14 14 4 14 22 Storage 11 | . 14 14 14 14 9 1 Processor 3 | . . . . . 7 7 Protection 4 | . . . . 9 8 6 Ballistic Gun 20 | . 28 28 28 27 12 4 Peak Build Rating 33 | 7 11 11 12 14 24 33 Average Rating 14 | 5 9 10 11 12 19 29 On Entrance 11 | . 7 11 11 12 14 22 Avg Prop Armor Cover (%) 11 | . 12 11 11 11 . . Naked Turns . | . . . . . . . Heaviest Build 99 | 14 92 92 90 93 99 98 Greatest Support 63 | 40 40 16 10 26 63 60 Greatest Overweight (x) 29 | 1 5 29 8 8 3 1 Average Overweight (x) 2 | . 3 5 8 3 1 . Largest Inventory Capacity 25 | 8 25 25 25 25 25 25 Average Capacity 23 | 7 24 25 25 25 25 6 Most Carried 25 | 6 19 19 20 23 25 25 Average Carried 19 | 3 14 18 19 20 24 6 Final Capacity 25 | 8 25 25 25 25 25 5 Final Carried 25 | 6 18 19 20 23 25 4 Class Distribution -------------------- 57% | Mutant 16% | Scavenger-Mutant 15% | Scavenger-Skirmisher 7% | Scavenger-Assassin Dominant Class ---------------- Mutant | -10/Materials Mutant | -10/Mines Mutant | -10/Exiles Mutant | -9/Mines Scavenger-Mutant | -8/Materials Scavenger-Ninja | -7/Factory Resources | -11 -10 -10 -10 -9 -8 -7 ----------- Run | Yrd Mat Min Exi Min Mat Fac Matter Collected 2347 | 271 500 104 . 22 1232 218 Remotely . | . . . . . . . Salvage Created 2882 | 52 788 71 . 64 1583 324 Parts 186 | 7 51 1 . 2 109 16 Haulers Intercepted 9 | . 2 . . . 5 2 Recyclers Shooed 3 | 1 1 . . . . 1 Parts Field Recycled . | . . . . . . . Retrieved Matter . | . . . . . . . Parts Self-Destructed . | . . . . . . . Prevented . | . . . . . . . Parts Restored . | . . . . . . . Kills | -11 -10 -10 -10 -9 -8 -7 ------- Run | Yrd Mat Min Exi Min Mat Fac Combat Hostiles Destroyed 59 | . 13 4 . 2 32 8 Melee 4 | . . . . . 3 1 Guns 30 | . 13 4 . . 13 . AOE 25 | . . . . 2 16 7 Classes Destroyed 14 | 1 7 1 . 1 4 . Worker 9 | . 3 . . . 5 1 Builder 4 | . . . . . 4 . Tunneler 2 | 2 . . . . . . Hauler 9 | . 2 . . . 5 2 Recycler 5 | . 1 . . . 2 2 Operator 1 | . 1 . . . . . Watcher 6 | . 3 . . . 3 . Swarmer 21 | . 3 1 . . 10 7 Grunt 23 | . 10 . . 1 12 . Brawler 1 | . . . . 1 . . Duelist 1 | . . . . . 1 . Sentry 9 | . . . . . 8 1 Hunter 1 | . . . . . 1 . Assembled 3 | . . 3 . . . . Best Kill Streak 11 | 2 4 2 . 2 8 11 Combat Bots Only 6 | . 3 2 . 2 6 4 Max Kills in Single Turn 5 | 1 1 1 . 2 5 2 Gunslinging . | . . . . . . . Exploded 3 | . . . . 2 3 2 Melee 1 | . . . . . 1 1 Uniques/NPCs Destroyed . | . . . . . . . Combat | -11 -10 -10 -10 -9 -8 -7 -------- Run | Yrd Mat Min Exi Min Mat Fac Hostile Shots Fired 380 | . 68 38 . 2 195 77 Missed 113 | . 18 17 . . 52 26 Hits 267 | . 50 21 . 2 143 51 Melee 4 | . . 2 . . 2 . Projectile 263 | . 50 19 . 2 141 51 Critical Strikes 7 | . . 1 . . 6 . Damage Taken 3754 | . 604 259 . 23 2170 698 Core 608 | . 161 49 . . 270 128 Absorbed by Shields . | . . . . . . . Core Remaining (%) 55 | 100 . . . 16 50 . Volleys Fired 208 | 5 62 20 . 3 109 9 Largest 2 | 2 2 2 . 1 2 1 Hottest 56 | 40 46 46 . 33 56 30 Shots Fired 368 | 10 124 40 . 3 182 9 Gun 327 | 10 124 40 . . 153 . Cannon . | . . . . . . . Launcher 41 | . . . . 3 29 9 Special . | . . . . . . . Kinetic 327 | 10 124 40 . . 153 . Thermal . | . . . . . . . Explosive 41 | . . . . 3 29 9 Electromagnetic . | . . . . . . . Robot Hit Streak 13 | 6 10 2 . 2 13 9 Robot Miss Streak 6 | 1 4 6 . 1 4 2 Penetration Max . | . . . . . . . Secondary Targets 1 | . 1 . . . . . Max Gunslinging Chain 1 | . 1 . . . . . Shots Hit Robots 237 | 6 77 13 . 1 128 12 Core Hits 161 | 3 36 6 . 3 91 22 Critical Kills 1 | . . . . . 1 . Critical Parts Destroyed 1 | . . . . . 1 . Critical Strikes 4 | . . . . . 4 . Destroy 2 | . . . . . 2 . Sever 2 | . . . . . 2 . Melee Attacks 31 | . . . . . 14 17 Impact . | . . . . . . . Slashing 31 | . . . . . 14 17 Piercing . | . . . . . . . Sneak Attacks 3 | . . . . . 1 2 Combat Hostiles . | . . . . . . . Follow-up Attacks . | . . . . . . . Damage Inflicted 6884 | 64 1102 207 . 208 3870 1433 Guns 2925 | 64 1078 207 . . 1576 . Cannons . | . . . . . . . Explosions 3193 | . . . . 208 1981 1004 Melee 742 | . . . . . 313 429 Ramming 24 | . 24 . . . . . Kinetic 2925 | 64 1078 207 . . 1576 . Thermal . | . . . . . . . Explosive 3193 | . . . . 208 1981 1004 Electromagnetic . | . . . . . . . Impact . | . . . . . . . Slashing 742 | . . . . . 313 429 Piercing . | . . . . . . . Highest Corruption 6 | . . . . . . 6 Average Corruption 6 | . . . . . . 6 Corruption Purged . | . . . . . . . Corruption Blocked . | . . . . . . . Effects 3 | . . . . . . 3 Message Errors 1 | . . . . . . 1 Parts Rejected 1 | . . . . . . 1 Data Loss (major) 1 | . . . . . . 1 Overload Shots . | . . . . . . . Overflow Damage 148 | . . . . . 87 61 Projectiles . | . . . . . . . Explosions 119 | . . . . . 87 32 Melee 29 | . . . . . . 29 Knockbacks . | . . . . . . . Impact . | . . . . . . . Kinetic . | . . . . . . . Secondary . | . . . . . . . Self-Inflicted Damage 101 | . 12 . . . 89 . Shots 5 | . . . . . 5 . Rammed 1 | . 1 . . . . . Targets Rammed 1 | . 1 . . . . . Kicked . | . . . . . . . Crushed . | . . . . . . . Highest Temperature 47 | . 24 12 . 7 47 . Average Temperature 7 | . 8 6 . 4 6 . Received Heat Transfer 1254 | . 297 . . 12 855 90 Siege Activations . | . . . . . . . Martial Activations . | . . . . . . . Shielding Activations . | . . . . . . . Robots Disrupted . | . . . . . . . Combat Hostiles . | . . . . . . . Robots Corrupted . | . . . . . . . Combat Hostiles . | . . . . . . . Parts Fried . | . . . . . . . Impact Corruptions . | . . . . . . . Robots Melted . | . . . . . . . Combat Hostiles . | . . . . . . . Parts Melted . | . . . . . . . Heat Transferred . | . . . . . . . Parts Sabotaged . | . . . . . . . Parts Stolen . | . . . . . . . Parts Stripped . | . . . . . . . Power Chain Reactions . | . . . . . . . Alert | -11 -10 -10 -10 -9 -8 -7 ------- Run | Yrd Mat Min Exi Min Mat Fac Maximum Alert Level 2 | . . . . . 2 2 Low Security (%) 66 | 100 100 100 . 100 31 . Level 1 26 | . . . . . 55 76 Level 2 6 | . . . . . 12 23 Level 3 . | . . . . . . . Level 4 . | . . . . . . . Level 5 . | . . . . . . . High Security . | . . . . . . . Max Security . | . . . . . . . Peak Influence 583 | 5 85 35 . 75 583 569 Initial 264 | . . 2 . . . 264 Average 120 | . 26 2 . 8 229 348 Influence Increases 2155 | 10 418 35 . 75 1184 433 Destroy 0b10 Robot/C 1120 | . 260 20 . 40 640 160 Destroy 0b10 Robot/NC 180 | 10 50 . . . 95 25 Destroy Leader 290 | . 70 . . 10 176 34 Successful Hack 36 | . 8 . . . 4 24 Disable Machine 210 | . . . . . 60 150 Destroy Structure 229 | . . . . 25 164 40 Lose Combat Pursuer 90 | . 30 15 . . 45 . Influence Decreases 1818 | 10 411 42 . 75 601 679 Entered New Map 324 | . . 5 . . . 319 Time Decay 1144 | 10 401 37 . 75 491 130 Lost Part 200 | . 10 . . . 110 80 Purge Threat 150 | . . . . . . 150 Squads Dispatched 5 | . 2 . . . 2 1 Investigation 2 | . 1 . . . 1 . Extermination . | . . . . . . . Reinforcement 2 | . 1 . . . . 1 Assault 1 | . . . . . 1 . Garrison . | . . . . . . . Intercept . | . . . . . . . Searches Triggered . | . . . . . . . Construction Impeded . | . . . . . . . Haulers Reinforced . | . . . . . . . Active Scanning Responses . | . . . . . . . Cargo Convoy Interrupts . | . . . . . . . Stealth | -11 -10 -10 -10 -9 -8 -7 --------- Run | Yrd Mat Min Exi Min Mat Fac Distress Signals 7 | . 4 . . . 2 1 Communications Jammed . | . . . . . . . Distress Signals . | . . . . . . . Times Spotted 103 | . 29 9 . 2 51 12 Peak Tracking Total 6 | . 5 3 . 2 6 4 Tactical Retreats 9 | . 2 4 . . 3 . Traps | -11 -10 -10 -10 -9 -8 -7 ------- Run | Yrd Mat Min Exi Min Mat Fac Traps Triggered 2 | . . . . . 1 1 Indirectly . | . . . . . . . Trap Hack Attempts . | . . . . . . . Triggered . | . . . . . . . Disarmed 3 | . 3 . . . . . Reprogrammed . | . . . . . . . Reused . | . . . . . . . Traps Extracted . | . . . . . . . Installed . | . . . . . . . Triggered . | . . . . . . . Machines | -11 -10 -10 -10 -9 -8 -7 ---------- Run | Yrd Mat Min Exi Min Mat Fac Machines Disabled 14 | . . . . . 4 10 Max in Single Turn 3 | . . . . . 2 3 Garrison Access 1 | . . . . . 1 . Machines Repaired . | . . . . . . . Machines Dismantled . | . . . . . . . Machines Sabotaged . | . . . . . . . Overloaded Fab Kills . | . . . . . . . Hacking | -11 -10 -10 -10 -9 -8 -7 --------- Run | Yrd Mat Min Exi Min Mat Fac Machines Accessed 20 | . 7 . 2 1 8 2 Terminals 12 | . 6 . . . 5 1 Fabricators . | . . . . . . . Repair Stations 2 | . 1 . . . 1 . Recycling Units . | . . . . . . . Scanalyzers 2 | . . . . . 1 1 Garrison Access 1 | . . . . . 1 . Total Hacks 37 | . 14 . 2 1 13 7 Successful 17 | . 5 . 2 1 5 4 Failed 20 | . 9 . . . 8 3 Catastrophic 6 | . 2 . . . 3 1 Database Lockouts . | . . . . . . . Manual 21 | . 11 . 1 . 8 1 Terminals 22 | . 11 . . . 9 2 Fabricators . | . . . . . . . Repair Stations 5 | . 3 . . . 2 . Recycling Units . | . . . . . . . Scanalyzers 6 | . . . . . 1 5 Garrison Access 1 | . . . . . 1 . Terminal Hacks 10 | . 3 . 2 1 2 2 Record 2 | . . . 1 . . 1 Open Door 1 | . . . . 1 . . Unreport Threat 1 | . . . . . . 1 Locate Traps 2 | . 1 . . . 1 . Disarm Traps 1 | . 1 . . . . . Hauler Manifests 2 | . 1 . . . 1 . Proto ID Catalog 1 | . . . 1 . . . Fabricator Hacks . | . . . . . . . Repair Station Hacks 2 | . 1 . . . 1 . Scan Component 2 | . 1 . . . 1 . Recycling Unit Hacks . | . . . . . . . Scanalyzer 3 | . . . . . 1 2 Insert Component 1 | . . . . . . 1 Analyze 1 | . . . . . . 1 Retrieve Study 1 | . . . . . 1 . Garrison Access Hacks 1 | . . . . . 1 . Seal Access 1 | . . . . . 1 . Unauthorized Hacks 1 | . 1 . . . . . Terminals 1 | . 1 . . . . . Operators 1 | . 1 . . . . . Fabricators . | . . . . . . . Repair Stations . | . . . . . . . Recycling Units . | . . . . . . . Scanalyzers . | . . . . . . . Garrison Access . | . . . . . . . Data Cores Recovered . | . . . . . . . Used . | . . . . . . . Hacking Detections 13 | . 7 . . . 5 1 Full Trace Events 1 | . 1 . . . . . Feedback Events . | . . . . . . . Feedback Blocked . | . . . . . . . Robot Schematics Acquired . | . . . . . . . Robots Built . | . . . . . . . Authchips . | . . . . . . . Time . | . . . . . . . Total Robot Build Rating . | . . . . . . . Part Schematics Acquired 1 | . . . . . . 1 Parts Built . | . . . . . . . Authchips . | . . . . . . . Time . | . . . . . . . Total Part Build Rating . | . . . . . . . Part Studies Acquired 1 | . . . . . 1 . Parts Repaired . | . . . . . . . Time . | . . . . . . . Parts Recycled . | . . . . . . . Recycled Matter . | . . . . . . . Retrieved Matter . | . . . . . . . Retrieved Components . | . . . . . . . Parts Scanalyzed 1 | . . . . . . 1 Part Schematics Acquired 1 | . . . . . . 1 Parts Damaged . | . . . . . . . Bothacking | -11 -10 -10 -10 -9 -8 -7 ------------ Run | Yrd Mat Min Exi Min Mat Fac Used RIF Installer . | . . . . . . . Robots Hacked . | . . . . . . . Non-combat . | . . . . . . . Combat . | . . . . . . . Robot Hacks Applied . | . . . . . . . Relay Couplers Released . | . . . . . . . Fabnet Peak Effective % . | . . . . . . . Robots Rewired . | . . . . . . . Allies Hacked . | . . . . . . . Hacks Repelled . | . . . . . . . Allies | -11 -10 -10 -10 -9 -8 -7 -------- Run | Yrd Mat Min Exi Min Mat Fac Total Allies . | . . . . . . . Largest Group . | . . . . . . . Highest-Rated Group . | . . . . . . . Highest-Rated Ally . | . . . . . . . Total Orders . | . . . . . . . Ally Attacks . | . . . . . . . Total Damage . | . . . . . . . Kills . | . . . . . . . Allies Corrupted . | . . . . . . . Allies Melted . | . . . . . . . Intel | -11 -10 -10 -10 -9 -8 -7 ------- Run | Yrd Mat Min Exi Min Mat Fac Active Infowar (turns) 6626 | 28 2215 576 489 226 2823 269 Terrain 2513 | . . . . . 2244 269 Structural 2927 | . . . . . 2658 269 Seismic 3534 | 28 2215 576 489 226 . . T.N.C. 2685 | . . . . . 2416 269 Cloaking 12 | . . . . . . 12 Robot Analysis Total . | . . . . . . . Derelict Logs Recovered 3 | . . 1 . 2 . . Drone Launches . | . . . . . . . Drone Recoveries . | . . . . . . . Exploration | -11 -10 -10 -10 -9 -8 -7 ------------- Run | Yrd Mat Min Exi Min Mat Fac Turns Passed 7379 | 132 2215 576 489 765 2933 269 Spaces Moved 3349 | 68 794 288 245 527 1030 397 Core 8 | 7 . 1 . . . . Treads 1516 | 61 420 . . . 1030 5 Legs . | . . . . . . . Wheels 1433 | . 374 287 245 527 . . Hover . | . . . . . . . Flight 392 | . . . . . . 392 Fastest Speed 29 | 50 160 175 200 135 240 29 Average Speed 193 | 151 249 180 200 139 243 37 Slowest Speed 1500 | 160 320 1500 200 200 400 243 Overloaded Moves . | . . . . . . . Propulsion Burnouts . | . . . . . . . Robots Hopped . | . . . . . . . Potential Cave-ins . | . . . . . . . Cave-ins Triggered 1 | . . . . . . 1 Exploration Rate (%) 56 | 3 95 49 61 87 85 14 Regions Visited 6 Branch Regions 3 Pre-discovered Areas 1 | . . . 1 . . . Known Exits Taken 1 | . . . . . 1 . Unknown Exits Taken 5 | 1 1 1 1 1 . . Scrap Searched 1 | . . 1 . . . . Spaces Dug 10 | . . . . . 5 5 Terrain Destroyed 331 | . . . . 32 250 49 Melee 8 | . . . . . 3 5 Projectile . | . . . . . . . AOE 323 | . . . . 32 247 44 Terrain Rammed . | . . . . . . . Walls Destroyed . | . . . . . . . Machines Disabled . | . . . . . . . Actions | -11 -10 -10 -10 -9 -8 -7 --------- Run | Yrd Mat Min Exi Min Mat Fac Total 3874 | 85 919 311 245 554 1274 486 Wait 139 | . 44 1 . 16 59 19 Move 3343 | 67 793 287 244 526 1029 397 Hop . | . . . . . . . Pick Up 39 | 6 10 1 1 3 13 5 Fast Attach 22 | 7 . 2 . . 10 3 Attach 17 | . 1 . . . 8 8 Detach 3 | . . . . . 2 1 Swap 37 | . 8 . . 4 15 10 Drop 33 | . . . . 1 15 17 Fire 208 | 5 62 20 . 3 109 9 Melee 31 | . . . . . 14 17 Ram 1 | . 1 . . . . . Kick . | . . . . . . . Crush . | . . . . . . . Escape Stasis . | . . . . . . . Rewire 1 | . . . . 1 . . Trap . | . . . . . . . Miscellaneous . | . . . . . . . Route ------- -11/Scrapyard -10/Materials (discovered 6 exits: [*Mat x3] / [*Min x2] / [*Sub]) -10/Mines (discovered 3 exits: [*Mat x2] / *Exi) -10/Exiles -9/Mines -8/Materials (discovered 5 exits: *Fac x3 / [*Sto x2]) -7/Factory (discovered 1 exit: [*Fac]) History --------- Turn | Location | Event 8 | -11/Scrapyard | Discovered new exit (range 16) 133 | -11/Scrapyard | Entered Materials 305 | -10/Materials | Build established: Mutant 389 | -10/Materials | Discovered new exit (range 7) 793 | -10/Materials | Discovered new exit (range 12) 1111 | -10/Materials | Discovered new exit (range 15) 1730 | -10/Materials | Discovered new exit (range 6) 1763 | -10/Materials | Core integrity fell below 50% 1859 | -10/Materials | Discovered new exit (range 5) 1943 | -10/Materials | Discovered new exit (range 16) 2348 | -10/Materials | Entered Mines 2364 | -10/Mines | Discovered new exit (range 7) 2394 | -10/Mines | Discovered new exit (range 13) 2469 | -10/Mines | Learned Materials terminal intel 2524 | -10/Mines | Assembled infested the area 2529 | -10/Mines | Assisted by a Guerilla fighting off Assembled 2853 | -10/Mines | Core integrity fell below 20% 2914 | -10/Mines | Deemed a non-threat by the Exiles lab entrance 2916 | -10/Mines | Discovered new exit (range 5) 2924 | -10/Mines | Entered Exiles 2972 | -10/Exiles | Met 8R-AWN 3006 | -10/Exiles | Met EX-HEX 3068 | -10/Exiles | Met EX-BIN 3130 | -10/Exiles | Aligned with FarCom system 3132 | -10/Exiles | Given EX-Vault access code 3178 | -10/Exiles | Opened EX-Vault 3196 | -10/Exiles | Found Cloak of Protection 3243 | -10/Exiles | Warned to stay clear of 0b10 Research branches 3299 | -10/Exiles | Met EX-DEC 3323 | -10/Exiles | Learned location of Zion (-7) 3389 | -10/Exiles | Discovered new exit (range 14) 3413 | -10/Exiles | Left Exiles lab with Cloak of Protection 3413 | -10/Exiles | Entered Mines 3751 | -9/Mines | Received a Rocket Launcher from a helpful Derelict 3772 | -9/Mines | Learned 4 Materials zone layouts 3912 | -9/Mines | Found the Drone Emporium 3914 | -9/Mines | Learned Materials stockpile data 3918 | -9/Mines | Found Prototype Device 4165 | -9/Mines | Discovered new exit (range 9) 4178 | -9/Mines | Entered Materials 4178 | -8/Materials | Evolved 4 slots: Propulsion x1, Utility x3 4179 | -8/Materials | Identified exit to Factory 4181 | -8/Materials | Loaded intel: 10 terminal locations 4260 | -8/Materials | Discovered new exit (range 11) 4467 | -8/Materials | Build established: Scavenger-Mutant 4653 | -8/Materials | Lost 6 parts (1p2n3u) 4751 | -8/Materials | Discovered new exit (range 7) 5349 | -8/Materials | Build established: Scavenger-Skirmisher 5689 | -8/Materials | Lost 3 parts (1p1n1w) 5739 | -8/Materials | Discovered exit to Factory (range 3) 5965 | -8/Materials | Build established: Scavenger-Mutant 6559 | -8/Materials | Build established: Scavenger-Assassin 6871 | -8/Materials | Discovered exit to Factory (range 8) 6978 | -8/Materials | First assault squad dispatched 7031 | -8/Materials | Build established: Scavenger-Skirmisher 7111 | -8/Materials | Entered Factory 7111 | -7/Factory | Evolved 2 slots: Propulsion x1, Utility x1 7302 | -7/Factory | Crushed by falling debris 7350 | -7/Factory | Discovered new exit (range 11) 7380 | -7/Factory | Self-destructed Last Messages --------------- 07348_ O-16 Technician: "IFF HANDSHAKE FAILED. SECURING TERMINAL." 07350_ EXIT=FOUND 07351_ System corrupted: Flight Unit+ rejected. 07351_ Acquired Flight Unit+. 07356_ ALERT: Hostiles spotted, dispatching reinforcements to Terminal F020. 07362_ Imp. Light Armor Plating destroyed. 07368_ Lgt. Assault Rifle destroyed. 07372_ Lgt. Nuclear Core destroyed. 07375_ Flight Unit+ destroyed. 07375_ Y-54 Guardian destroyed. 07379_ System corrupted: Substantial component data lost. 07379_ K-01 Serf cleans the Nuclear Reactor. 07379_ Acquired 69 matter. 07379_ Triggered Stasis Trap. 07379_ A bubble of rippling energy engulfs the area. 07379_ Field strength at 94. Map ----- +----------------------------------------------------+ | ?????????????????????????????????????????????????? | | ?????????????????????????????????????????????????? | | ?????????????????????????????????????????????????? | | ?????????????????????????????????????????????????? | | ?????????????????????????????????????????????????? | | ?????????????????????????????????????????????????? | | ?????????????????????????????????????????????????? | | ??? ##?????????????????????????????????????????? | | ?? ##?????????????????????????????????????????? | | ?#T ##?????????????????????????????????????????? | | ### ###????????????????????????????????????????? | | ### ###????????????????????????????????????????? | | ## ## ???????????????????????????????????????? | | ## ## ???????????????????????????????????????? | | ## + ?????????????????"?????? ?????????????? | | ## ##?????????? # #? ?????????????? | | ## ##?????"???" ############ k""?????????????? | | # ## #! ## """????????????? | | # ##########+### """????????????? | | # ?????????????? | | # k ""? ???????????? | | # < ""?????????????? | | + """ ""?????????? | | # ????????? | | # ###+########## o g??g?????????? | | #! ## ##### @ ####?"?????????????? | | # ## """" #########/########???????????????? | | #! ## """" #### != ##???????????????? | | # ## """" #### ##???????????????? | | ## ## """" #### ##???????????????? | | ## ## """" !####[ ##???????????????? | | ## ## """" #### + ? ? ???????????? | | ## ## """" #### ##???????????????? | | ## #### ##????Y??????????? | | ## """" #### ! ##???????????????? | | ## """" #### *!! ##???????????????? | | ## """" #### *!! ##???????????????? | | ## """" ]#### !!! ##???????????????? | | ######### """" + + ###??????????????? | | ######### """" ##################???????????????? | | ????????? """" ##################???????????????? | | ???????## ##???????#???????????????????????? | | ???????###########???????????????????????????????? | | ???????###########????????#??????????????????????? | | ?????????????????????????????????????????????????? | | ?????????????????????????????????????????????????? | | ?????????????????????????????????????????????????? | | ?????????????????????????????????????????????????? | | ?????????????????????????????????????????????????? | | ?????????????????????????????????????????????????? | +----------------------------------------------------+ Best States ------------- Heat Dissipation 34 Energy Generation 14 Energy Capacity 265 Matter Stores 300 Matter Capacity 300 Sight Range 16 Terrain Scan Range 14 Terrain Scan Density 10 Cloak Strength 5 Armor Coverage 150 Evasion (%) 64 Recoil Reduction 3 Offensive Hacking 10 Defensive Hacking 10 Item Schematics ----------------- Imp. Cesium-ion Thruster | -7/Factory | Scanalyzed Robot Schematics ------------------ None Fabricated ------------ Nothing Repaired ---------- Nothing Studied --------- Flight Unit | -8/Materials | Hacked Alien Tech Used ----------------- None Achievements -------------- None Challenges ------------ None Game ------ Seed DispersalScrapoidInterpreter Manual? 0 Play Time 00:42:59 Cumulative 50.1 hours Start 2026.04.18 @ 18:30:40 End 2026.04.18 @ 19:10:21 Sessions 1 Manual Loads 0 Difficulty Rogue Special Mode None Game No. 62 Rogue 62 Adventurer 0 Explorer 0 Win Type - Total 0 Types 0/0/0/0/0/0/0/0/0/0 Lore% 26 Gallery% 34 Achievement% 27 Wizard Run 0 Options --------- Layout 2 ASCII 0 Keyboard 0 Movement Numpad Keybinds 1 Fullscreen 1 Font 24/Smallcaps Map View 50x44 Zoom Use 0% Tactical HUD 1 Map Filters NONE Filters NONE Steam 1 RUN: 7373a0c2-b460-4c24-9dd4-622cfef606ff